bitfinex-derivatives/quotes_SOLF0:USTF0_20260211
["timestamp","ask_amount","ask_price","bid_price","bid_amount"]
[1770779260140,7.88516926,83.569,83.506,4.86518409]
[1770779261038,7.88516926,83.569,83.512,15.66835123]
[1770779261240,7.88516926,83.569,83.513,4.88455123]
[1770779262753,7.88516926,83.569,83.518,10.783]
[1770779263253,7.88516926,83.569,83.522,10.7825]
[1770779263458,7.88516926,83.585,83.531,4.7494065]
[1770779263650,7.88516926,83.599,83.531,4.7494065]
[1770779264148,7.88516926,83.599,83.545,10.7795]
[1770779264750,7.88516926,83.599,83.531,4.7494065]
[1770779265753,7.88516926,83.599,83.534,4.5936691]
[1770779266752,7.88516926,83.599,83.538,4.54291941]
[1770779267458,7.88516926,83.597,83.538,4.54291941]
[1770779267850,10.54073068,83.624,83.538,4.54291941]
[1770779267851,7.88516926,83.612,83.538,4.54291941]
[1770779268852,7.88516926,83.609,83.548,10.7791]
[1770779269252,7.88516926,83.607,83.548,10.7791]
[1770779270358,7.88516926,83.607,83.556,4.48510792]
[1770779271360,7.88516926,83.607,83.546,10.7794]
[1770779272262,7.51490899,83.605,83.546,10.7794]
[1770779274063,7.51490899,83.605,83.551,10.7788]
[1770779274765,7.51490899,83.605,83.551,15.01874087]
[1770779275061,7.51490899,83.605,83.552,4.23994087]
[1770779275265,7.51490899,83.623,83.56,4.23994087]
[1770779275566,7.51490899,83.609,83.546,4.23251227]
[1770779276459,7.51490899,83.609,83.549,4.19377773]
[1770779277756,7.51490899,83.609,83.553,4.12067659]
[1770779278464,7.51490899,83.609,83.56,4.08934687]
[1770779279568,7.51490899,83.609,83.564,4.04992682]
[1770779280162,7.51490899,83.623,83.567,4.01793435]
[1770779280362,10.7686,83.631,83.571,4.03196064]
[1770779280568,7.51490899,83.63,83.571,4.03196064]
[1770779280762,7.51490899,83.628,83.573,4.00035492]
[1770779280962,7.51490899,83.643,83.573,4.00035492]
[1770779282869,7.51490899,83.639,83.576,10.7755]
[1770779283067,7.51490899,83.639,83.573,4.00035492]
[1770779283768,7.51490899,83.631,83.574,10.7758]
[1770779283968,7.51490899,83.631,83.575,3.9533612]
[1770779284373,7.51490899,83.631,83.581,3.95537317]
[1770779284773,7.51490899,83.631,83.57,8.18249692]
[1770779284975,7.51490899,83.631,83.567,3.92520082]
[1770779285175,7.51490899,83.619,83.567,3.92520082]
[1770779285475,7.51490899,83.619,83.551,3.91842182]
[1770779286070,7.51490899,83.639,83.571,3.88872944]
[1770779287067,7.51490899,83.639,83.591,3.7987657]
[1770779287275,7.51490899,83.663,83.591,3.7987657]
[1770779287869,7.51490899,83.663,83.596,10.773]
[1770779288171,7.51490899,83.663,83.591,3.7987657]
[1770779288172,7.51490899,83.658,83.591,3.7987657]
[1770779288570,7.51490899,83.656,83.591,3.7987657]
[1770779289763,7.51490899,83.651,83.591,3.7987657]
[1770779291180,7.51490899,83.649,83.591,3.7987657]
[1770779291569,7.51490899,83.649,83.592,10.7735]
[1770779291770,7.51490899,83.649,83.593,3.42726374]
[1770779292780,7.51490899,83.649,83.595,14.14085162]
[1770779292980,7.51490899,83.649,83.6,2.74582407]
[1770779294079,7.51490899,83.639,83.575,3.33483399]
[1770779294283,7.51490899,83.629,83.58,6.0108418]
[1770779294578,7.51490899,83.629,83.59,2.74582407]
[1770779295881,7.51490899,83.629,83.58,6.0108418]
[1770779296577,7.51490899,83.619,83.57,2.74582407]
[1770779296778,7.51490899,83.619,83.58,2.74582407]
[1770779297383,7.51490899,83.609,83.56,2.74582407]
[1770779297684,7.51490899,83.609,83.557,3.20486583]
[1770779297685,2.74582407,83.6,83.557,3.20486583]
[1770779297882,7.51490899,83.609,83.56,2.74582407]
[1770779298477,7.51490899,83.609,83.56,6.186643]
[1770779298681,7.51490899,83.609,83.561,3.44081893]
[1770779298985,7.51490899,83.609,83.57,2.74582407]
[1770779299981,7.51490899,83.609,83.519,11.71693625]
[1770779299982,7.51490899,83.625,83.58,2.74582407]
[1770779300284,2.74582407,83.62,83.571,14.16015748]
[1770779300680,9.77294436,83.62,83.571,14.16015748]
[1770779300888,95.46,83.634,83.519,11.71693625]
[1770779300889,7.02712029,83.609,83.561,10.7774]
[1770779302789,7.02712029,83.609,83.519,11.71693625]
[1770779302790,2.74582407,83.59,83.547,10.7793]
[1770779304581,2.74582407,83.59,83.542,3.13463611]
[1770779304781,7.28856051,83.589,83.542,3.13463611]
[1770779307089,2.74582407,83.57,83.523,3.00281595]
[1770779307294,2.74582407,83.56,83.51,2.74582407]
[1770779307686,2.74582407,83.56,83.51,5.7133987]
[1770779307891,2.74582407,83.56,83.511,2.96757463]
[1770779308889,7.28856051,83.566,83.52,2.74582407]
[1770779311493,2.74582407,83.56,83.516,10.7833]
[1770779311685,7.28856051,83.559,83.502,10.785]
[1770779311886,2.74582407,83.55,83.502,10.785]
[1770779312495,7.28856051,83.559,83.502,10.785]
[1770779312688,7.28856051,83.559,83.51,2.74582407]
[1770779315288,7.28856051,83.559,83.503,2.91731539]
[1770779315480,7.28856051,83.539,83.49,2.74582407]
[1770779315686,7.28856051,83.539,83.491,2.91731539]
[1770779318191,7.28856051,83.539,83.5,2.74582407]
[1770779319393,2.74582407,83.56,83.52,2.74582407]
[1770779319689,21.5392,83.623,83.478,107.24]
[1770779319690,2.74582407,83.55,83.5,2.74582407]
[1770779319894,7.28856051,83.549,83.5,2.74582407]
[1770779320699,7.28856051,83.549,83.503,10.785]
[1770779321197,7.28856051,83.549,83.494,2.73369281]
[1770779321198,2.74582407,83.54,83.494,2.73369281]
[1770779321998,7.28856051,83.539,83.496,10.7858]
[1770779322194,7.28856051,83.539,83.494,2.73369281]
[1770779323194,7.28856051,83.539,83.495,10.786]
[1770779325502,7.28856051,83.539,83.494,2.73369281]
[1770779326503,7.28856051,83.557,83.52,2.74582407]
[1770779326798,7.28856051,83.557,83.467,21.5792]
[1770779326799,7.28856051,83.572,83.53,2.74582407]
[1770779330096,7.28856051,83.569,83.52,2.74582407]
[1770779330897,2.74582407,83.56,83.51,2.74582407]
[1770779331102,6.82633727,83.559,83.51,2.74582407]
[1770779331999,6.82633727,83.559,83.512,10.7838]
[1770779334702,6.82633727,83.559,83.513,2.42162768]
[1770779336901,6.82633727,83.559,83.52,2.74582407]
[1770779337100,6.82633727,83.559,83.521,2.33244355]
[1770779337800,10.7767,83.568,83.521,2.33244355]
[1770779338001,2.74582407,83.58,83.531,2.30744221]
[1770779338208,6.82633727,83.579,83.531,2.30744221]
[1770779340006,6.82633727,83.549,83.5,2.74582407]
[1770779340610,6.82633727,83.549,83.502,10.7851]
[1770779341311,6.82633727,83.549,83.51,2.74582407]
[1770779352320,6.82633727,83.549,83.502,12.94795764]
[1770779352620,6.82633727,83.549,83.51,2.74582407]
[1770779353020,6.82633727,83.549,83.51,2.75226264]
[1770779359225,6.82633727,83.566,83.521,2.03741683]
[1770779359425,6.82633727,83.566,83.53,4.78574722]
[1770779359625,6.82633727,83.566,83.53,2.75226264]
[1770779360428,13.52736264,83.58,83.531,2.05882866]
[1770779360429,6.60641086,83.578,83.531,2.05882866]
[1770779360626,6.60641086,83.578,83.54,2.75226264]
[1770779362029,10.7739,83.589,83.54,2.75226264]
[1770779362030,10.7739,83.589,83.541,2.02443906]
[1770779362228,6.60641086,83.591,83.517,95.52]
[1770779362229,6.60641086,83.591,83.55,4.7767017]
[1770779362534,6.60641086,83.591,83.56,2.75226264]
[1770779362828,6.60641086,83.591,83.55,2.02443906]
[1770779362829,6.60641086,83.591,83.55,4.7767017]
[1770779364731,10.7721,83.604,83.551,1.94348653]
[1770779364732,17.15973923,83.604,83.551,1.94348653]
[1770779365039,6.38763923,83.603,83.56,2.75226264]
[1770779365739,6.38763923,83.603,83.57,2.75226264]
[1770779366545,6.38763923,83.603,83.58,2.75226264]
[1770779367038,6.38763923,83.603,83.57,2.75226264]
[1770779367729,6.38763923,83.629,83.58,2.75226264]
[1770779367934,6.38763923,83.629,83.528,22.24343938]
[1770779367935,6.38763923,83.629,83.6,2.75226264]
[1770779368235,6.38763923,83.629,83.59,2.75226264]
[1770779368437,6.38763923,83.629,83.58,2.75226264]
[1770779368944,6.38763923,83.629,83.582,10.7747]
[1770779369244,6.38763923,83.629,83.59,2.75226264]
[1770779369441,6.38763923,83.642,83.6,2.75226264]
[1770779370541,6.38763923,83.629,83.58,2.75226264]
[1770779370755,6.38763923,83.629,83.59,2.75226264]
[1770779371039,6.38763923,83.629,83.58,2.75226264]
[1770779371240,6.38763923,83.629,83.576,10.7755]
[1770779371241,6.38763923,83.619,83.576,10.7755]
[1770779371436,6.38763923,83.619,83.57,2.75226264]
[1770779372744,35.94,83.667,83.55,95.5]
[1770779372745,6.38763923,83.599,83.55,2.75226264]
[1770779372943,6.38763923,83.589,83.54,2.75226264]
[1770779373253,6.38763923,83.579,83.53,2.75226264]
[1770779374145,6.38763923,83.589,83.54,2.75226264]
[1770779375042,9.13990187,83.58,83.532,10.7812]
[1770779375236,6.38763923,83.58,83.54,2.75226264]
[1770779376546,6.38763923,83.599,83.55,2.75226264]
[1770779377956,6.38763923,83.589,83.541,10.7801]
[1770779378546,6.38763923,83.589,83.54,2.75226264]
[1770779378547,6.38763923,83.589,83.545,1.66293354]
[1770779378854,6.38763923,83.589,83.55,2.75226264]
[1770779379551,6.38763923,83.589,83.545,1.66293354]
[1770779379746,6.38763923,83.579,83.533,10.781]
[1770779381444,6.38763923,83.579,83.54,2.75226264]
[1770779382141,6.38763923,83.579,83.505,14.82249086]
[1770779382142,6.38763923,83.569,83.51,2.75226264]
[1770779382346,95.48,83.616,83.51,2.75226264]
[1770779382347,6.38763923,83.559,83.51,2.75226264]
[1770779382948,6.38763923,83.559,83.51,4.40674222]
[1770779383645,6.38763923,83.559,83.52,2.75226264]
[1770779384754,6.38763923,83.559,83.522,10.7825]
[1770779385555,2.75226264,83.57,83.524,10.7823]
[1770779385556,9.13990187,83.57,83.524,10.7823]
[1770779385855,6.38763923,83.569,83.524,10.7823]
[1770779386846,6.38763923,83.569,83.523,1.60681002]
[1770779388851,6.38763923,83.569,83.523,12.38921002]
[1770779391559,6.38763923,83.569,83.53,2.75226264]
[1770779394061,6.38763923,83.569,83.49,22.24343938]
[1770779394062,6.51434044,83.583,83.541,1.37670006]
[1770779395757,6.51434044,83.583,83.544,10.7796]
[1770779395959,6.51434044,83.611,83.57,2.75226264]
[1770779396663,6.51434044,83.611,83.571,10.7762]
[1770779397753,6.51434044,83.611,83.58,2.75226264]
[1770779398366,6.51434044,83.611,83.571,10.7762]
[1770779399262,6.51434044,83.609,83.56,14.88287088]
[1770779399468,6.51434044,83.609,83.56,13.52543005]
[1770779400559,10.87422375,83.66,83.534,95.5]
[1770779400560,2.74783005,83.62,83.571,1.16672013]
[1770779400754,6.51434044,83.619,83.56,2.74783005]
[1770779401359,6.51434044,83.609,83.56,2.74783005]
[1770779401560,6.51434044,83.609,83.572,10.776]
[1770779402766,6.51434044,83.609,83.562,10.7773]
[1770779402965,6.51434044,83.609,83.561,1.15504552]
[1770779403356,6.51434044,83.609,83.57,2.74783005]
[1770779403766,6.51434044,83.609,83.571,10.7762]
[1770779404366,2.74783005,83.62,83.571,0.51701968]
[1770779404565,6.51434044,83.649,83.6,2.74783005]
[1770779405871,6.51434044,83.649,83.602,10.7722]
[1770779406263,6.51434044,83.649,83.6,2.74783005]
[1770779407770,6.51434044,83.639,83.592,10.7735]
[1770779408674,6.51434044,83.639,83.6,2.74783005]
[1770779409768,35.94,83.689,83.565,14.82249086]
[1770779409769,10.7635,83.671,83.61,2.74783005]
[1770779409969,6.51434044,83.653,83.61,2.74783005]
[1770779411271,6.51434044,83.649,83.61,2.74783005]
[1770779411865,6.51434044,83.649,83.601,11.05567614]
[1770779413373,6.51434044,83.649,83.61,2.74783005]
[1770779414877,6.51434044,83.649,83.61,2.74559479]
[1770779417982,6.51434044,83.649,83.601,11.05567614]
[1770779420186,6.51434044,83.649,83.61,2.74559479]
[1770779421588,6.51434044,83.649,83.601,10.7723]
[1770779422592,6.37555409,83.639,83.591,11.02771298]
[1770779423392,6.37555409,83.639,83.6,2.74559479]
[1770779429897,6.37276253,83.652,83.62,2.74559479]
[1770779430089,6.37276253,83.652,83.611,0.18828062]
[1770779430290,6.37276253,83.649,83.6,2.74559479]
[1770779430489,95.42,83.677,83.591,0.18754357]
[1770779430490,6.37313106,83.639,83.591,0.18754357]
[1770779430691,6.37313106,83.639,83.6,2.74559479]
[1770779435496,6.37313106,83.639,83.593,10.7734]
[1770779435696,6.37313106,83.639,83.6,2.74559479]
[1770779436396,6.37313106,83.639,83.593,10.7734]
[1770779436593,6.37313106,83.639,83.59,2.74559479]
[1770779437100,6.37313106,83.639,83.6,2.74559479]
[1770779441502,6.37313106,83.639,83.585,14.82249086]
[1770779441812,6.48582844,83.619,83.572,10.776]
[1770779450314,6.48582844,83.619,83.58,2.74559479]
[1770779450709,6.48582844,83.619,83.572,10.776]
[1770779454119,6.48582844,83.619,83.58,2.74559479]
[1770779460511,6.46409779,83.629,83.58,2.74559479]
[1770779460716,6.46409779,83.629,83.54,106.96]
[1770779460717,6.46409779,83.629,83.59,2.74559479]
[1770779461712,17.23289779,83.629,83.577,14.82249086]
[1770779462014,17.23289779,83.629,83.544,29.66943602]
[1770779462015,6.46448952,83.609,83.57,2.74559479]
[1770779462913,6.46896542,83.622,83.59,2.74559479]
[1770779464122,6.46896542,83.622,83.58,13.52069479]
[1770779466815,6.5406079,83.633,83.59,13.51929479]
[1770779467821,6.5406079,83.633,83.58,14.82249086]
[1770779467822,6.54095055,83.629,83.58,13.52069479]
[1770779468021,6.54095055,83.619,83.58,10.7751]
[1770779469127,6.54095055,83.619,83.58,13.52069479]
[1770779472421,6.54450862,83.63,83.59,2.74559479]
[1770779472622,6.54450862,83.63,83.58,13.52069479]
[1770779473032,6.54450862,83.619,83.58,10.7751]
[1770779473233,6.54450862,83.619,83.58,13.52069479]
[1770779476937,6.54450862,83.619,83.58,13.52219228]
[1770779480142,6.54450862,83.619,83.58,2.74709228]
[1770779484547,6.5069539,83.63,83.59,2.74709228]
[1770779484941,6.5069539,83.629,83.583,10.7746]
[1770779485535,6.5069539,83.629,83.58,2.74709228]
[1770779485734,6.5069539,83.629,83.549,29.66943602]
[1770779485735,6.50723319,83.609,83.56,2.74709228]
[1770779485935,6.50723319,83.599,83.55,2.74709228]
[1770779486137,2.74709228,83.59,83.55,2.74709228]
[1770779486340,6.50723319,83.589,83.55,2.74709228]
[1770779486848,6.51546168,83.607,83.56,2.74709228]
[1770779487842,6.51546168,83.607,83.57,2.74709228]
[1770779488348,6.51546168,83.607,83.56,13.52469228]
[1770779490342,6.51546168,83.607,83.531,102.02]
[1770779490343,6.51546168,83.607,83.57,2.74709228]
[1770779491047,6.51546168,83.607,83.569,10.7765]
[1770779491743,10.7682,83.634,83.58,2.74709228]
[1770779491744,6.71268662,83.619,83.58,2.74709228]
[1770779493649,6.71268662,83.619,83.577,10.7754]
[1770779499353,6.71268662,83.619,83.531,29.66943602]
[1770779499354,9.47908233,83.63,83.59,2.74709228]
[1770779499554,6.73217798,83.629,83.59,2.74709228]
[1770779499754,2.74709228,83.62,83.57,2.74709228]
[1770779499956,6.73217798,83.619,83.57,2.74709228]
[1770779500955,6.73217798,83.619,83.577,10.7755]
[1770779501253,95.46,83.651,83.56,2.74709228]
[1770779501254,6.69683067,83.609,83.56,2.74709228]
[1770779502047,6.69702169,83.599,83.555,10.7783]
[1770779502457,6.69702169,83.599,83.56,2.74709228]
[1770779509362,6.69702169,83.599,83.56,2.74853599]
[1770779510959,6.69702169,83.599,83.542,10.7799]
[1770779511157,6.70119308,83.589,83.55,2.74853599]
[1770779515363,6.70119308,83.589,83.529,22.24343938]
[1770779515364,2.74853599,83.58,83.529,22.24343938]
[1770779515662,2.74853599,83.58,83.486,58.26106266]
[1770779515663,6.68197809,83.579,83.53,2.74853599]
[1770779516658,6.67667071,83.569,83.52,2.74853599]
[1770779517259,6.67667071,83.569,83.53,2.74853599]
[1770779517770,95.46,83.602,83.508,22.24343938]
[1770779517771,6.67683874,83.559,83.51,2.74853599]
[1770779517965,6.67683874,83.559,83.498,95.46]
[1770779517966,6.67683874,83.559,83.52,2.74853599]
[1770779520163,6.67683874,83.559,83.51,2.74853599]
[1770779520357,6.5793667,83.569,83.53,2.74853599]
[1770779520564,6.5793667,83.569,83.52,2.74853599]
[1770779523370,10.7758,83.575,83.512,10.7838]
[1770779523371,6.64902196,83.559,83.512,10.7838]
[1770779525672,6.64902196,83.559,83.52,2.74853599]
[1770779535571,6.61698287,83.569,83.527,10.7819]
[1770779536074,6.61698287,83.569,83.52,2.74853599]
[1770779536877,6.61698287,83.569,83.52,2.75105246]
[1770779537878,95.52,83.601,83.51,2.75105246]
[1770779537879,6.61695895,83.559,83.51,2.75105246]
[1770779538681,6.61945956,83.529,83.48,2.75105246]
[1770779538877,6.61945956,83.519,83.457,95.52]
[1770779539179,6.61945956,83.509,83.46,2.75105246]
[1770779540779,6.61945956,83.509,83.461,10.7903]
[1770779541379,6.61945956,83.509,83.47,2.75105246]
[1770779541879,6.53658213,83.52,83.48,2.75105246]
[1770779546886,6.53658213,83.52,83.49,2.75105246]
[1770779547183,6.62760033,83.539,83.49,2.75105246]
[1770779548092,6.62760033,83.539,83.5,2.75105246]
[1770779550488,6.62760033,83.539,83.501,10.7852]
[1770779550690,6.62760033,83.539,83.49,2.75105246]
[1770779551891,6.62760033,83.539,83.491,10.7865]
[1770779552079,2.75105246,83.52,83.47,2.75105246]
[1770779552279,6.62258583,83.519,83.47,2.75105246]
[1770779553693,6.62258583,83.519,83.471,10.789]
[1770779555088,6.62258583,83.519,83.48,2.75105246]
[1770779555684,6.62258583,83.519,83.471,10.789]
[1770779555891,6.62258583,83.519,83.48,2.75105246]
[1770779557296,6.62258583,83.519,83.471,10.789]
[1770779559600,6.62258583,83.519,83.47,2.75105246]
[1770779559898,35.92,83.568,83.448,95.54]
[1770779559899,6.62029234,83.499,83.45,2.75105246]
[1770779560692,6.62029234,83.499,83.451,10.7917]
[1770779561301,6.61653074,83.517,83.48,2.75105246]
[1770779561798,6.61653074,83.517,83.47,2.75105246]
[1770779562000,6.61653074,83.517,83.472,10.789]
[1770779567911,2.75105246,83.51,83.463,10.7902]
[1770779568206,6.69319188,83.509,83.463,10.7902]
[1770779569706,6.69319188,83.509,83.47,2.75105246]
[1770779570007,6.69319188,83.509,83.463,10.7902]
[1770779570008,6.69319188,83.509,83.46,2.75105246]
[1770779573211,6.69319188,83.509,83.463,10.7901]
[1770779573411,6.69319188,83.509,83.47,2.75105246]
[1770779574706,6.69319188,83.509,83.471,10.7891]
[1770779575614,46.86986581,83.561,83.438,12.17320165]
[1770779575615,6.71682336,83.525,83.49,2.75105246]
[1770779575804,6.71682336,83.525,83.481,10.7878]
[1770779576613,6.7126181,83.519,83.481,10.7878]
[1770779577008,6.7126181,83.519,83.47,2.75105246]
[1770779577009,6.7126181,83.519,83.47,10.7892]
[1770779577215,6.7126181,83.509,83.47,10.7892]
[1770779578122,6.7126181,83.509,83.46,10.7905]
[1770779580218,6.7126181,83.509,83.47,2.75105246]
[1770779581122,6.7126181,83.509,83.474,10.7887]
[1770779583825,6.7126181,83.509,83.464,10.79]
[1770779591433,2.75105246,83.5,83.451,10.7917]
[1770779591627,6.60834956,83.499,83.451,10.7917]
[1770779601937,6.60834956,83.499,83.442,22.24343938]
[1770779601938,6.60834956,83.499,83.46,13.54637611]
[1770779602533,6.60834956,83.499,83.451,10.7917]
[1770779602938,6.72434156,83.489,83.434,104.98]
[1770779603234,6.72434156,83.489,83.442,10.7928]
[1770779610444,95.6,83.512,83.419,426.99813608]
[1770779610445,9.49190651,83.5,83.452,10.7916]
[1770779610847,6.7361304,83.499,83.452,10.7916]
[1770779621654,6.63637369,83.479,83.43,2.75577611]
[1770779622061,6.63637369,83.479,83.433,10.794]
[1770779628358,6.63637369,83.479,83.43,2.75577611]
[1770779629557,6.69559153,83.469,83.415,10.7964]
[1770779629761,6.69559153,83.469,83.42,2.75577611]
[1770779631058,6.69559153,83.469,83.43,2.75577611]
[1770779632560,106.58947324,83.507,83.402,104.0]
[1770779632561,6.69960296,83.479,83.44,2.75577611]
[1770779633355,6.69960296,83.479,83.43,2.75577611]
[1770779635462,6.69960296,83.479,83.432,10.7941]
[1770779640463,6.72815507,83.489,83.44,2.75702223]
[1770779640664,6.72815507,83.489,83.418,22.24343938]
[1770779640873,6.72815507,83.459,83.41,2.75702223]
[1770779641482,6.72836621,83.449,83.392,103.7]
[1770779641671,6.72836621,83.439,83.39,2.75702223]
[1770779642868,6.72836621,83.439,83.364,2.0861746]
[1770779642869,6.64579812,83.429,83.37,2.75702223]
[1770779643276,6.64579812,83.429,83.38,2.75702223]
[1770779643677,6.64601868,83.409,83.366,10.8027]
[1770779644172,6.64601868,83.409,83.361,10.8034]
[1770779645973,6.68549113,83.399,83.314,22.24343938]
[1770779646275,6.68549113,83.389,83.34,2.75702223]
[1770779646473,6.68549113,83.389,83.33,2.75702223]
[1770779646873,2.75702223,83.38,83.33,2.75702223]
[1770779647073,6.61131813,83.379,83.33,2.75702223]
[1770779647478,6.61131813,83.379,83.314,104.04]
[1770779647479,6.61153918,83.369,83.32,2.75702223]
[1770779648175,6.61153918,83.369,83.33,2.75702223]
[1770779649972,6.60582031,83.382,83.34,2.75702223]
[1770779650377,457.20209635,83.427,83.314,104.04]
[1770779650378,6.64398222,83.394,83.35,2.75702223]
[1770779650886,6.64398222,83.379,83.33,2.75702223]
[1770779651580,6.64419338,83.369,83.33,2.75702223]
[1770779652087,6.64419338,83.369,83.314,104.04]
[1770779652275,6.64419338,83.369,83.33,2.75702223]
[1770779653689,6.5075651,83.409,83.34,2.75702223]
[1770779653880,10.7971,83.41,83.34,2.75702223]
[1770779653881,2.75702223,83.38,83.34,2.75702223]
[1770779654485,6.50285893,83.379,83.332,10.8071]
[1770779655484,9.26010815,83.37,83.321,10.8085]
[1770779655685,6.50308592,83.369,83.321,10.8085]
[1770779655885,95.68,83.411,83.285,1.63133114]
[1770779655886,5.75040415,83.359,83.285,1.63133114]
[1770779656184,5.75040415,83.339,83.286,10.813]
[1770779656383,5.75040415,83.319,83.277,1.63133114]
[1770779656786,5.75040415,83.309,83.263,1.72908162]
[1770779656985,2.75702223,83.33,83.281,5.53896994]
[1770779657179,2.75702223,83.32,83.27,2.75702223]
[1770779657381,2.75702223,83.32,83.225,408.106]
[1770779657382,2.75702223,83.32,83.271,5.53896994]
[1770779657582,2.75702223,83.32,83.26,2.75702223]
[1770779657583,2.75702223,83.32,83.261,5.53896994]
[1770779657884,2.75702223,83.32,83.271,5.53896994]
[1770779658276,35.92,83.386,83.271,5.53896994]
[1770779658277,2.75702223,83.31,83.271,5.53896994]
[1770779660290,5.75040415,83.321,83.271,5.53896994]
[1770779660492,2.75702223,83.31,83.271,5.53896994]
[1770779660694,5.76038299,83.299,83.252,10.8175]
[1770779660989,5.76038299,83.299,83.253,5.90277613]
[1770779663592,35.92,83.37,83.234,5.08245415]
[1770779663593,5.76038299,83.279,83.235,5.74348134]
[1770779663779,5.76178279,83.294,83.241,5.74348134]
[1770779664391,5.76178279,83.309,83.26,2.76923222]
[1770779664583,5.76178279,83.309,83.251,5.74348134]
[1770779665188,5.76178279,83.299,83.251,5.74348134]
[1770779670101,5.76178279,83.299,83.234,5.08245415]
[1770779670102,5.76178279,83.319,83.271,5.74348134]
[1770779670296,2.76923222,83.31,83.271,5.74348134]
[1770779670692,8.53101501,83.31,83.271,5.74348134]
[1770779670996,5.76178279,83.31,83.271,5.74348134]
[1770779672501,5.76178279,83.331,83.271,5.74348134]
[1770779672692,5.76178279,83.319,83.271,5.74348134]
[1770779672892,5.76178279,83.319,83.27,13.58433222]
[1770779672893,5.76178279,83.319,83.27,2.76923222]
[1770779673088,5.76178279,83.309,83.261,5.74348134]
[1770779675200,5.76178279,83.299,83.25,2.76923222]
[1770779675397,5.76178279,83.289,83.24,2.76923222]
[1770779675993,5.76178279,83.289,83.234,5.08245415]
[1770779676196,5.76178279,83.289,83.24,2.76923222]
[1770779676399,5.76178279,83.289,83.241,5.74348134]
[1770779677403,5.76178279,83.289,83.234,5.08245415]
[1770779677404,5.76178279,83.279,83.234,5.08245415]
[1770779677603,5.76178279,83.279,83.24,2.76923222]
[1770779679109,5.76178279,83.279,83.234,5.08245415]
[1770779679608,5.76178279,83.279,83.24,2.76923222]
[1770779684306,5.76178279,83.279,83.234,5.08245415]
[1770779688513,5.76178279,83.279,83.234,10.82593549]
[1770779689620,5.76178279,83.269,83.234,5.08245415]
[1770779693821,5.7000125,83.259,83.234,5.08245415]
[1770779694922,2.76923222,83.25,83.234,4.51374238]
[1770779695124,8.46924472,83.25,83.234,4.51374238]
[1770779695526,5.7000125,83.25,83.209,10.823]
[1770779695725,5.7000125,83.25,83.212,5.87971962]
[1770779696222,8.46924472,83.25,83.212,5.87971962]
[1770779696426,5.7000125,83.249,83.212,5.87971962]
[1770779698828,2.76923222,83.26,83.212,5.87971962]
[1770779699231,5.7000125,83.259,83.214,16.70211962]
[1770779699431,5.7000125,83.259,83.215,5.87971962]
[1770779699831,5.7000125,83.259,83.22,2.76923222]
[1770779700125,5.7000125,83.259,83.217,5.87971962]
[1770779701839,5.7000125,83.249,83.201,10.8241]
[1770779702030,8.46924472,83.23,83.187,5.87971962]
[1770779702231,5.7000125,83.229,83.187,5.87971962]
[1770779702929,2.76923222,83.22,83.161,5.87971962]
[1770779703132,2.76923222,83.2,83.161,5.87971962]
[1770779703328,5.7000125,83.223,83.18,8.64895184]
[1770779703537,5.7000125,83.255,83.216,10.8222]
[1770779703729,5.7000125,83.255,83.161,168.4571]
[1770779703730,5.7000125,83.269,83.221,5.87971962]
[1770779704631,5.7000125,83.284,83.24,2.76923222]
[1770779704944,5.7000125,83.284,83.187,95.86]
[1770779704945,2.76923222,83.28,83.23,2.76923222]
[1770779705136,5.7000125,83.279,83.231,5.87971962]
[1770779705336,5.7000125,83.279,83.24,8.64895184]
[1770779705536,5.7000125,83.279,83.231,5.87971962]
[1770779705829,5.7000125,83.279,83.178,35.92]
[1770779705830,2.76923222,83.27,83.216,5.87971962]
[1770779706031,2.76923222,83.27,83.2,95.86]
[1770779706032,5.7000125,83.269,83.221,5.87971962]
[1770779708337,2.76923222,83.28,83.231,5.87971962]
[1770779708539,5.7000125,83.279,83.231,5.87971962]
[1770779712240,5.7000125,83.259,83.211,5.87971962]
[1770779712533,5.7000125,83.259,83.22,8.64895184]
[1770779713136,95.86,83.296,83.23,2.76923222]
[1770779713137,5.7000125,83.269,83.23,2.76923222]
[1770779713538,5.7000125,83.282,83.24,2.76923222]
[1770779713743,5.7000125,83.282,83.231,5.87971962]
[1770779713744,2.76923222,83.28,83.231,5.87971962]
[1770779713943,5.7000125,83.279,83.231,5.87971962]
[1770779714140,5.7000125,83.259,83.21,2.76923222]
[1770779714345,5.7000125,83.249,83.2,2.76923222]
[1770779714642,5.7000125,83.249,83.21,2.76923222]
[1770779715340,2.76923222,83.26,83.211,5.87971962]
[1770779716042,5.7000125,83.263,83.18,22.12653166]
[1770779716043,5.7000125,83.263,83.221,5.87971962]
[1770779717438,2.76923222,83.27,83.221,5.87971962]
[1770779718640,471.03174859,83.289,83.205,5.87971962]
[1770779718641,5.7000125,83.249,83.205,5.87971962]
[1770779719947,5.7000125,83.249,83.21,2.76923222]
[1770779721047,5.7000125,83.249,83.2,2.76923222]